bitfinex/quotes_SOLUSD_20250420
["timestamp","ask_amount","ask_price","bid_price","bid_amount"]
[1745133331991,14.94975298,139.02,138.97,7.7563738]
[1745133332681,14.94975298,139.02,138.96,33.7863738]
[1745133332885,7.7563738,138.99,138.96,26.03]
[1745133333088,7.7563738,138.99,138.96,0.03]
[1745133333387,89.59419347,139.01,138.96,7.7863738]
[1745133333592,97.35056727,139.01,138.96,7.7863738]
[1745133334391,7.7563738,138.99,138.96,0.03]
[1745133334775,89.59419347,139.01,138.96,7.7863738]
[1745133334991,90.15637379,139.0,138.96,0.03]
[1745133335194,12.13627126,138.99,138.96,0.03]
[1745133335592,33.71627126,138.99,138.96,0.03]
[1745133335893,12.13627126,138.99,138.96,0.03]
[1745133336389,19.33150995,138.99,138.96,0.03]
[1745133338176,19.96167126,138.97,138.96,0.03]
[1745133338990,60.19132012,138.97,138.96,0.03]
[1745133339191,60.19132012,138.97,138.96,1e-08]
[1745133339491,86.19132012,138.97,138.96,1e-08]
[1745133339691,74.05504886,138.97,138.96,1e-08]
[1745133339900,93.38711777,138.97,138.96,1e-08]
[1745133340471,105.52338903,138.97,138.96,1e-08]
[1745133340676,20.15857126,138.93,138.92,0.03]
[1745133341093,8.0223,138.93,138.92,0.03]
[1745133341295,20.15857126,138.93,138.92,0.03]
[1745133342296,15.22016943,138.93,138.92,0.03]
[1745133343384,27.35644069,138.93,138.92,0.03]
[1745133346980,40.22964886,138.92,138.91,1e-08]
[1745133347186,52.36592012,138.92,138.88,0.03]
[1745133347383,30.78592012,138.89,138.88,0.03]
[1745133347589,52.36592012,138.89,138.88,1e-08]
[1745133347801,64.50219138,138.89,138.88,1e-08]
[1745133347981,52.36592012,138.89,138.88,1e-08]
[1745133348298,67.71706252,138.89,138.88,1e-08]
[1745133348502,79.85333378,138.89,138.88,1e-08]
[1745133348694,67.71706252,138.89,138.88,1e-08]
[1745133349183,27.48741366,138.89,138.88,1e-08]
[1745133350778,49.06741366,138.89,138.88,1e-08]
[1745133350979,7.1999424,138.89,138.88,1e-08]
[1745133351381,19.33582226,138.9,138.88,1e-08]
[1745133352178,7.199551,138.9,138.88,1e-08]
[1745133352499,19.33582226,138.9,138.88,1e-08]
[1745133354688,12.13627126,138.89,138.88,1e-08]
[1745133356209,19.33582226,138.9,138.88,1e-08]
[1745133356501,12.13627126,138.89,138.88,1e-08]
[1745133356700,89.5999424,138.89,138.88,1e-08]
[1745133356902,101.73621366,138.89,138.88,1e-08]
[1745133359113,94.53627126,138.89,138.88,1e-08]
[1745133359504,101.73621366,138.89,138.88,1e-08]
[1745133360116,40.91621366,138.89,138.88,1e-08]
[1745133362233,40.22964886,138.86,138.84,0.03]
[1745133362433,33.71627126,138.85,138.84,0.03]
[1745133363623,52.36592012,138.85,138.82,0.03]
[1745133363844,33.71627126,138.83,138.82,0.03]
[1745133364140,40.91932535,138.83,138.82,0.03]
[1745133364762,7.20305409,138.83,138.82,0.03]
[1745133365045,40.91932535,138.83,138.82,0.03]
[1745133366232,19.33932535,138.83,138.82,0.03]
[1745133366854,7.20305409,138.83,138.82,0.03]
[1745133367044,19.33932535,138.83,138.82,0.03]
[1745133368836,7.20305409,138.83,138.82,0.03]
[1745133369042,19.33932535,138.83,138.82,0.03]
[1745133369557,7.20305409,138.83,138.82,0.03]
[1745133369734,19.33932535,138.83,138.82,0.03]
[1745133372855,40.91932535,138.83,138.82,0.03]
[1745133375656,7.20305409,138.83,138.82,0.03]
[1745133375853,19.33932535,138.83,138.82,0.03]
[1745133385767,7.20305409,138.83,138.82,0.03]
[1745133385960,19.33932535,138.83,138.82,0.03]
[1745133391148,14.98898983,138.83,138.82,0.03]
[1745133392469,14.98691507,138.87,138.82,7.81593574]
[1745133392662,7.20097933,138.87,138.83,7.78593574]
[1745133392849,14.98691507,138.87,138.83,7.78593574]
[1745133393045,7.20097933,138.87,138.83,7.78593574]
[1745133393270,14.98691507,138.87,138.82,7.81593574]
[1745133394475,14.98691507,138.87,138.82,9.25660476]
[1745133394975,7.78593574,138.87,138.82,9.25660476]
[1745133395172,12.15692382,138.87,138.82,13.62759284]
[1745133395378,7.20060082,138.88,138.83,12.15692382]
[1745133395572,7.20060082,138.88,138.84,12.15692382]
[1745133395757,101.7570575,138.89,138.84,12.15692382]
[1745133396673,0.063,138.9,138.87,12.15692382]
[1745133396864,0.063,138.9,138.88,12.15692382]
[1745133399876,0.063,138.9,138.89,12.15692382]
[1745133400951,12.21992382,138.9,138.83,1.44061081]
[1745133401177,12.15692382,138.88,138.82,0.03]
[1745133401475,12.15692382,138.83,138.82,0.03]
[1745133401675,12.15692382,138.84,138.82,0.03]
[1745133401854,12.15692382,138.83,138.82,0.03]
[1745133403678,19.35997791,138.83,138.82,0.03]
[1745133407686,82.4,138.85,138.82,0.03]
[1745133408161,94.55692382,138.85,138.82,0.03]
[1745133408360,82.4,138.85,138.82,0.03]
[1745133408561,94.55692382,138.85,138.82,0.03]
[1745133408767,101.75898901,138.85,138.82,0.03]
[1745133409584,12.15692382,138.84,138.82,0.03]
[1745133410460,19.35978848,138.84,138.82,0.03]
[1745133410962,12.15692382,138.83,138.82,0.03]
[1745133411798,19.35997791,138.83,138.82,0.03]
[1745133416694,82.4,138.82,138.78,0.03]
[1745133416868,12.15692382,138.79,138.78,0.03]
[1745133417067,19.36205387,138.79,138.78,0.03]
[1745133418391,7.20476843,138.8,138.78,0.03]
[1745133418577,19.36169225,138.8,138.78,0.03]
[1745133418971,7.20476843,138.8,138.78,0.03]
[1745133419178,19.36169225,138.8,138.78,0.03]
[1745133419582,12.15692382,138.79,138.78,0.03]
[1745133420090,19.36169225,138.8,138.78,0.03]
[1745133420790,12.15692382,138.79,138.78,0.03]
[1745133421390,19.36205387,138.79,138.78,0.03]
[1745133422074,7.20513005,138.79,138.78,0.03]
[1745133422269,7.20475676,138.8,138.78,0.03]
[1745133422499,26.24625335,138.84,138.78,26.82692382]
[1745133422500,94.55692382,138.83,138.78,26.82692382]
[1745133422788,12.15692382,138.82,138.78,14.67]
[1745133423775,82.4,138.83,138.8,12.15692382]
[1745133424083,101.76011291,138.83,138.78,26.82692382]
[1745133424413,12.15692382,138.82,138.78,14.67]
[1745133424997,101.76011291,138.83,138.78,26.82692382]
[1745133425488,89.60318909,138.83,138.79,12.15692382]
[1745133425681,19.35964515,138.84,138.79,13.5979427]
[1745133425981,19.35964515,138.84,138.8,12.15692382]
[1745133425982,7.20272133,138.84,138.8,12.15692382]
[1745133426693,19.35964515,138.84,138.79,13.5979427]
[1745133427890,19.35964515,138.84,138.79,12.15692382]
[1745133428114,12.15692382,138.82,138.78,26.82692382]
[1745133429288,12.15692382,138.82,138.78,14.67]
[1745133429616,19.3610013,138.82,138.78,14.67]
[1745133430800,82.4,138.83,138.79,12.15692382]
[1745133431105,7.2029072,138.84,138.8,12.15692382]
[1745133432709,19.35983102,138.84,138.79,13.59792912]
[1745133433309,19.35983102,138.84,138.79,12.15692382]
[1745133433816,7.2029072,138.84,138.79,12.15692382]
[1745133434018,19.35983102,138.84,138.79,12.15692382]
[1745133435809,7.2029072,138.84,138.8,12.15692382]
[1745133436807,7.2029072,138.84,138.78,14.67]
[1745133437019,19.35983102,138.84,138.79,12.15692382]
[1745133437901,19.35983102,138.84,138.8,14.64]
[1745133438993,12.15692382,138.82,138.8,14.64]
[1745133441518,7.20409192,138.81,138.8,14.64]
[1745133442221,89.60314476,138.83,138.8,14.64]
[1745133442444,12.15692382,138.82,138.78,0.03]
[1745133442593,12.15692382,138.81,138.78,0.03]
[1745133443003,25.21077999,138.83,138.78,0.03]
[1745133443198,12.15692382,138.82,138.78,0.03]
[1745133443740,19.36101574,138.81,138.78,0.03]
[1745133444023,21.58,138.85,138.78,0.03]
[1745133444024,7.20201656,138.85,138.79,12.15692382]
[1745133444208,7.20201656,138.85,138.78,0.03]
[1745133444209,7.20201656,138.85,138.78,12.18692382]
[1745133444409,12.15692382,138.84,138.78,12.18692382]
[1745133444614,12.15692382,138.84,138.79,14.56]
[1745133445206,25.20705797,138.85,138.79,14.56]
[1745133445426,12.15692382,138.84,138.79,14.56]
[1745133446224,7.20305409,138.83,138.79,26.71692382]
[1745133447336,12.15692382,138.84,138.79,26.71692382]
[1745133447337,89.60165467,138.86,138.81,12.15692382]
[1745133448313,89.60165467,138.86,138.82,12.15692382]
[1745133448514,12.21992382,138.88,138.82,12.15692382]
[1745133448932,12.21992382,138.88,138.83,12.15692382]
[1745133449138,12.21992382,138.88,138.84,26.71692382]
[1745133449139,7.26363355,138.88,138.84,26.71692382]
[1745133449435,0.063,138.88,138.86,12.15692382]
[1745133449824,0.063,138.88,138.85,12.15692382]
[1745133450435,0.063,138.88,138.84,14.56]
[1745133450636,12.21992382,138.88,138.84,14.56]
[1745133450940,12.15692382,138.87,138.84,14.56]
[1745133451631,12.15692382,138.85,138.8,14.56]
[1745133451840,12.15692382,138.84,138.8,14.56]
[1745133452238,82.4,138.86,138.8,14.56]
[1745133452416,7.20201656,138.85,138.8,14.56]
[1745133452615,12.15692382,138.83,138.8,14.56]
[1745133453938,7.20357297,138.82,138.8,14.56]
[1745133454637,7.20314722,138.83,138.8,14.56]
[1745133455438,19.36007104,138.83,138.8,14.56]
[1745133456055,7.20314722,138.83,138.8,14.56]
[1745133456347,7.20314722,138.83,138.8,26.71692382]
[1745133456526,82.4,138.84,138.8,26.71692382]
[1745133456527,89.60168894,138.86,138.82,12.15692382]
[1745133456720,89.60168894,138.86,138.81,12.15692382]
[1745133456920,12.15692382,138.85,138.8,26.71692382]
[1745133457541,12.15692382,138.85,138.8,14.56]
[1745133458045,19.35945911,138.84,138.8,14.56]
[1745133458258,7.20253529,138.84,138.8,26.71692382]
[1745133459421,82.4,138.86,138.82,12.15692382]
[1745133459617,82.4,138.86,138.83,12.15692382]
[1745133460423,0.063,138.88,138.84,12.15692382]
[1745133460634,0.063,138.88,138.86,12.15692382]
[1745133461247,0.063,138.88,138.85,14.56]
[1745133461547,0.063,138.88,138.85,26.71692382]
[1745133461735,7.26370057,138.88,138.85,14.56]
[1745133463348,0.063,138.88,138.86,12.15692382]
[1745133464047,0.063,138.88,138.85,14.56]
[1745133466734,12.15692382,138.86,138.79,14.56]
[1745133466927,94.55692382,138.85,138.79,14.56]
[1745133467138,94.55692382,138.85,138.8,12.15692382]
[1745133467337,7.20253529,138.84,138.8,12.15692382]
[1745133472555,37.36579734,138.84,138.79,14.56]
[1745133472938,94.55692382,138.83,138.79,14.56]
[1745133473347,82.4,138.83,138.8,12.15692382]
[1745133473553,82.4,138.83,138.82,12.15692382]
[1745133473859,7.20253529,138.84,138.82,12.15692382]
[1745133474856,7.20201656,138.85,138.82,12.15692382]
[1745133475058,7.20201656,138.85,138.79,14.56]
[1745133475252,7.20201656,138.85,138.81,12.15692382]
[1745133475651,7.20201656,138.85,138.79,14.56]
[1745133476062,7.20201656,138.85,138.81,12.15692382]
[1745133476936,7.20097933,138.87,138.83,12.15692382]
[1745133477461,7.20097933,138.87,138.84,12.15692382]
[1745133477649,7.20097933,138.87,138.84,26.75692382]
[1745133477851,7.20097933,138.87,138.84,14.6]
[1745133479859,7.20097933,138.87,138.84,26.75692382]
[1745133480063,7.20097933,138.87,138.84,14.6]
[1745133481261,7.20097933,138.87,138.84,26.75692382]
[1745133482957,19.35790315,138.87,138.84,14.6]
[1745133483258,7.7824207,138.86,138.84,14.6]
[1745133484940,7.20201656,138.85,138.84,14.6]
[1745133487359,7.20097933,138.87,138.84,14.6]
[1745133487565,7.26362076,138.88,138.85,7.7824207]
[1745133487737,7.26362076,138.88,138.84,14.6]
[1745133489863,0.063,138.88,138.86,7.7824207]
[1745133490068,0.063,138.88,138.87,7.7824207]
[1745133491461,0.063,138.88,138.84,16.04048896]
[1745133491668,0.063,138.88,138.85,33.7824207]
[1745133492346,0.063,138.88,138.85,26.0]
[1745133492547,0.063,138.88,138.86,7.7824207]
[1745133494148,0.063,138.88,138.87,7.7824207]
[1745133494367,0.063,138.88,138.86,9.22271533]
[1745133494955,0.063,138.88,138.87,7.7824207]
[1745133495258,0.063,138.88,138.87,33.7824207]
[1745133495866,0.063,138.88,138.86,48.3624207]
[1745133496271,0.063,138.88,138.87,7.7824207]
[1745133498468,0.063,138.88,138.86,48.3624207]
[1745133498778,0.063,138.88,138.86,14.58]
[1745133500453,0.063,138.88,138.86,22.3624207]
[1745133502175,0.063,138.88,138.86,14.58]
[1745133502373,0.063,138.88,138.86,22.3624207]
[1745133502569,82.4,138.87,138.83,26.0]
[1745133502877,82.4,138.87,138.83,7.7824207]
[1745133503582,0.063,138.88,138.85,7.7824207]
[1745133505882,0.063,138.88,138.87,7.7824207]
[1745133507968,0.063,138.88,138.86,7.7824207]
[1745133508781,0.063,138.88,138.85,40.52]
[1745133508978,0.063,138.88,138.86,7.7824207]
[1745133511683,0.063,138.88,138.85,14.52]
[1745133512681,7.26346082,138.88,138.85,14.52]
[1745133513681,15.04588152,138.88,138.85,14.52]
[1745133514058,98.0970207,138.87,138.82,22.3024207]
[1745133514271,82.4,138.86,138.82,22.3024207]
[1745133514865,7.20201656,138.85,138.82,22.3024207]
[1745133516175,89.60164707,138.86,138.83,7.7824207]
[1745133516573,89.60164707,138.86,138.82,14.52]
[1745133516771,89.60164707,138.86,138.82,22.3024207]
[1745133516979,89.60164707,138.86,138.82,14.52]
[1745133517180,89.60164707,138.86,138.83,7.7824207]
[1745133519691,89.60164707,138.86,138.82,14.52]
[1745133519883,89.60164707,138.86,138.82,22.3024207]
[1745133520192,97.38406777,138.86,138.82,14.52]
[1745133523198,7.7824207,138.84,138.82,14.52]
[1745133523375,7.7824207,138.83,138.82,14.52]
[1745133523888,7.7824207,138.83,138.78,269.2124207]
[1745133524791,7.20357297,138.82,138.78,269.2124207]
[1745133525989,7.20357297,138.82,138.78,261.43]
[1745133527175,7.7824207,138.8,138.78,0.03]
[1745133527576,7.7824207,138.79,138.78,0.03]
[1745133527970,29.3724207,138.79,138.78,0.03]
[1745133528375,36.57858918,138.77,138.76,0.03]
[1745133529186,28.79616848,138.77,138.76,0.03]
[1745133529490,36.57858918,138.77,138.76,0.03]
[1745133532520,70.58438918,138.77,138.76,1e-08]
[1745133532793,66.23964886,138.75,138.74,1e-08]
[1745133532990,74.02206956,138.75,138.74,1e-08]
[1745133534878,81.22927676,138.75,138.74,1e-08]
[1745133538577,81.22927676,138.75,138.72,1e-08]
[1745133538578,72.81522521,138.75,138.72,1e-08]
[1745133538782,48.02206956,138.73,138.72,1e-08]
[1745133538992,55.23031579,138.73,138.72,1e-08]
[1745133539196,63.05381579,138.73,138.72,1e-08]
[1745133539579,63.05381579,138.73,138.64,0.03]
[1745133539580,47.59,138.66,138.64,0.03]
[1745133539785,47.59,138.66,138.56,14.56]
[1745133539786,7.7824207,138.65,138.56,14.56]
[1745133539994,7.7824207,138.64,138.57,26.0]
[1745133540405,7.7824207,138.64,138.56,14.56]
[1745133540612,7.7824207,138.64,138.59,7.7824207]
[1745133540906,7.7824207,138.7,138.63,7.7824207]
[1745133541109,7.21032518,138.69,138.65,7.7824207]
[1745133541406,7.21032518,138.69,138.65,12.18822957]
[1745133542707,7.21032518,138.69,138.66,12.18822957]
[1745133543008,7.21032518,138.69,138.65,12.18822957]
[1745133543505,7.2099732,138.7,138.66,12.18822957]
[1745133543805,7.20876585,138.72,138.69,12.18822957]
[1745133544186,7.20876585,138.72,138.69,14.56]
[1745133544391,82.4,138.76,138.71,12.18822957]
[1745133544599,7.2066878,138.76,138.72,12.18822957]
[1745133544900,7.2066878,138.76,138.73,12.18822957]
[1745133545312,7.20616848,138.77,138.73,12.18822957]
[1745133545507,7.20616848,138.77,138.74,12.18822957]
[1745133545700,7.20616848,138.77,138.74,26.74822957]
[1745133546505,7.20564922,138.78,138.74,26.74822957]
[1745133547290,19.39387879,138.78,138.74,14.56]
[1745133548108,12.18822957,138.76,138.74,14.56]
[1745133549090,7.20564922,138.78,138.74,14.56]
[1745133549415,19.39387879,138.78,138.74,14.56]
[1745133549610,12.18822957,138.75,138.74,14.56]
[1745133549919,12.18822957,138.75,138.7,14.56]
[1745133550089,7.20809924,138.74,138.7,26.74822957]
[1745133550414,1.6376,138.73,138.62,3.01509252]
[1745133550712,26.0,138.71,138.6,15.39]
[1745133550926,6.0263,138.68,138.6,0.03]
[1745133551088,26.0,138.64,138.6,0.03]
[1745133551287,2.76465124,138.63,138.6,0.03]
[1745133551692,1.76465124,138.63,138.6,0.03]
[1745133551888,3.3510624,138.62,138.6,0.03]
[1745133552114,7.21500721,138.6,138.48,20.48]
[1745133552813,26.0,138.57,138.46,30.2965071]
[1745133553000,26.0,138.55,138.48,0.03]
[1745133553511,33.21500721,138.6,138.48,46.03]
[1745133553814,19.54469241,138.54,138.48,0.03]
[1745133554020,19.54469241,138.53,138.48,0.03]
[1745133554197,33.21715862,138.56,138.48,0.03]
[1745133554397,7.21715862,138.56,138.48,0.03]
[1745133554620,7.21590588,138.59,138.48,0.03]
[1745133554807,26.0,138.58,138.48,19.57469241]
[1745133555112,26.0,138.56,138.48,0.03]
[1745133555310,26.0,138.52,138.48,0.03]
[1745133555726,6.4687,138.55,138.51,19.54469241]
[1745133556024,44.64964886,138.54,138.48,0.03]
[1745133556321,26.0,138.51,138.48,0.03]
[1745133556522,6.4687,138.55,138.48,0.03]
[1745133556894,13.6868062,138.55,138.48,0.03]
[1745133557113,6.4687,138.55,138.48,19.57469241]
[1745133557412,6.4687,138.55,138.48,0.03]
[1745133557613,7.2152657,138.6,138.47,26.0]
[1745133557818,13.68297438,138.62,138.49,26.0]
[1745133558007,26.0,138.59,138.46,2.3812071]
[1745133558317,7.2158291,138.59,138.46,2.3812071]
[1745133558499,33.2158291,138.59,138.49,19.54469241]
[1745133558692,6.4687,138.62,138.52,19.54469241]
[1745133558898,6.4687,138.62,138.51,26.0]
[1745133559302,1.0,138.62,138.47,26.0]
[1745133559506,19.54469241,138.54,138.47,26.0]
[1745133559710,19.54469241,138.56,138.48,18.64964886]
[1745133559907,26.0,138.58,138.48,18.64964886]
[1745133560108,19.54469241,138.55,138.47,18.64964886]
[1745133560400,33.21671398,138.57,138.47,18.64964886]
[1745133560598,19.54469241,138.56,138.47,18.64964886]
[1745133560814,32.4687,138.57,138.49,19.54469241]
[1745133561015,13.68574752,138.57,138.46,2.3812071]
[1745133561216,26.0,138.54,138.46,2.3812071]
[1745133561431,6.4687,138.57,138.49,19.54469241]
[1745133561726,6.4687,138.62,138.56,19.54469241]
[1745133561894,6.4687,138.62,138.52,18.64964886]
[1745133561895,19.54469241,138.62,138.57,19.54469241]
[1745133562091,6.4687,138.67,138.56,19.54469241]
[1745133562398,19.54469241,138.6,138.51,6.49748589]
[1745133562609,19.54469241,138.64,138.54,19.54469241]
[1745133562610,19.54469241,138.59,138.54,19.54469241]
[1745133562920,19.54469241,138.62,138.54,18.64964886]
[1745133563092,19.54469241,138.64,138.54,19.54469241]
[1745133563416,13.68017113,138.67,138.59,19.54469241]
[1745133563595,19.54469241,138.66,138.6,19.54469241]
[1745133563800,26.01339241,138.67,138.61,19.54469241]
[1745133564002,19.54469241,138.63,138.54,44.64964886]
[1745133564216,39.68017388,138.67,138.58,19.54469241]
[1745133564417,8.87103944,138.7,138.61,19.54469241]
[1745133564624,19.54469241,138.67,138.62,19.54469241]
[1745133565014,19.54469241,138.66,138.57,18.64964886]
[1745133565411,8.87103944,138.7,138.57,18.64964886]
[1745133565613,8.87103944,138.7,138.62,19.54469241]
[1745133565808,19.54469241,138.68,138.62,19.54469241]
[1745133566002,26.0,138.69,138.59,18.64964886]
[1745133566201,26.0,138.69,138.62,19.54469241]
[1745133566202,19.54469241,138.68,138.62,19.54469241]
[1745133566499,7.21001852,138.7,138.59,44.64964886]
[1745133566500,19.54469241,138.7,138.59,44.64964886]
[1745133566909,19.54469241,138.7,138.64,19.54469241]
[1745133567324,19.54469241,138.7,138.65,19.54469241]
[1745133567551,19.54469241,138.7,138.61,6.49301974]
[1745133567730,26.0,138.71,138.64,19.54469241]
[1745133568112,6.5483,138.72,138.66,19.54469241]
[1745133568422,19.54469241,138.72,138.63,18.64964886]
[1745133568627,0.063,138.73,138.67,19.54469241]
[1745133568801,19.54469241,138.71,138.65,19.54469241]
[1745133569007,19.54469241,138.7,138.65,19.54469241]
[1745133569198,26.0,138.7,138.61,18.64964886]
[1745133569532,19.54469241,138.68,138.63,19.54469241]
[1745133569729,19.54469241,138.71,138.65,19.54469241]
[1745133569908,7.20924612,138.72,138.65,19.54469241]
[1745133570231,0.063,138.73,138.62,26.0]
[1745133570232,0.063,138.73,138.64,19.54469241]
[1745133570403,0.063,138.73,138.69,19.54469241]
[1745133570798,0.063,138.73,138.65,26.0]
[1745133571005,0.063,138.73,138.71,19.54469241]
[1745133571306,0.063,138.73,138.68,26.0]
[1745133571307,0.063,138.73,138.72,19.54469241]
[1745133571506,0.063,138.73,138.67,6.4902286]
[1745133571716,0.063,138.73,138.71,19.54469241]
[1745133572432,0.063,138.73,138.67,6.4902286]
[1745133572630,0.063,138.73,138.71,19.54469241]
[1745133573037,0.063,138.73,138.68,6.48974603]
[1745133573222,0.063,138.73,138.71,19.54469241]
[1745133573627,0.063,138.73,138.67,6.4902286]
[1745133573829,0.063,138.73,138.71,19.54469241]
[1745133574129,0.063,138.73,138.68,18.64964886]
[1745133574435,0.063,138.73,138.72,19.54469241]
[1745133576715,0.063,138.73,138.71,19.54469241]
[1745133576913,0.063,138.73,138.72,19.54469241]
[1745133577115,0.063,138.73,138.71,19.54469241]
[1745133577922,0.063,138.73,138.69,5.76817121]
[1745133578114,0.063,138.73,138.67,5.76869061]
[1745133578613,19.60769241,138.73,138.68,19.54469241]
[1745133578824,0.063,138.73,138.69,19.54469241]
[1745133579020,0.063,138.73,138.7,19.54469241]
[1745133579223,0.063,138.73,138.66,50.41908551]
[1745133579626,0.063,138.73,138.69,19.54469241]
[1745133580035,0.063,138.73,138.63,11.44182357]
[1745133580036,19.54469241,138.72,138.63,11.44182357]
[1745133580235,19.54469241,138.7,138.63,7.9243]
[1745133580420,0.063,138.73,138.67,19.54469241]
[1745133580621,19.54469241,138.72,138.66,19.54469241]
[1745133580942,19.54469241,138.72,138.67,19.54469241]
[1745133581239,19.54469241,138.72,138.63,13.69488342]
[1745133581532,26.81640911,138.73,138.64,24.41981177]
[1745133581737,0.063,138.73,138.7,19.54469241]
[1745133582642,0.063,138.73,138.69,19.54469241]
[1745133583521,0.063,138.73,138.7,19.54469241]
[1745133584640,0.063,138.73,138.71,19.54469241]
[1745133585443,0.063,138.73,138.67,44.64964886]
[1745133585635,0.063,138.73,138.68,5.76867608]
[1745133585937,0.063,138.73,138.7,19.54469241]
[1745133586141,0.063,138.73,138.65,44.64964886]
[1745133586354,0.063,138.73,138.7,19.54469241]
[1745133587351,0.063,138.73,138.69,19.54469241]
[1745133587555,0.063,138.73,138.67,5.04777669]
[1745133587849,0.063,138.73,138.69,19.54469241]
[1745133588030,0.063,138.73,138.68,19.54469241]
[1745133588231,19.60769241,138.73,138.65,31.04864061]
[1745133588439,26.063,138.73,138.62,247.3]
[1745133588638,26.063,138.73,138.64,19.54469241]
[1745133588639,19.54469241,138.69,138.64,19.54469241]
[1745133589334,26.75462351,138.7,138.64,19.54469241]
[1745133589857,26.75462351,138.7,138.65,19.54469241]
[1745133589858,19.54469241,138.7,138.65,19.54469241]
[1745133590026,19.54469241,138.7,138.64,19.54469241]
[1745133590348,7.20944797,138.71,138.62,278.34975203]
[1745133590349,19.54469241,138.71,138.65,19.54469241]
[1745133590650,19.54469241,138.7,138.62,278.34975203]
[1745133590854,19.54469241,138.7,138.65,19.54469241]
[1745133591050,19.54469241,138.72,138.67,19.54469241]
[1745133591349,19.60769241,138.73,138.64,24.5937403]
[1745133591549,19.54469241,138.7,138.65,19.54469241]
[1745133591733,19.54469241,138.71,138.65,19.54469241]
[1745133592132,19.54469241,138.72,138.67,19.54469241]
[1745133592436,19.54469241,138.72,138.63,5.04928978]
[1745133592635,19.54469241,138.72,138.66,19.54469241]
[1745133592839,7.27124767,138.73,138.63,5.04928978]
[1745133592840,19.60769241,138.73,138.67,19.54469241]
[1745133593155,0.063,138.73,138.67,19.54469241]
[1745133593334,0.063,138.73,138.66,23.69796849]
[1745133593644,0.063,138.73,138.72,19.54469241]
[1745133595452,0.063,138.73,138.71,19.54469241]
[1745133596044,0.063,138.73,138.7,19.54469241]
[1745133596277,0.063,138.73,138.71,19.54469241]
[1745133596624,0.063,138.73,138.7,19.54469241]
[1745133596935,0.063,138.73,138.71,19.54469241]
[1745133597135,0.063,138.73,138.67,5.04764471]
[1745133597469,0.063,138.73,138.72,19.54469241]
[1745133598151,0.063,138.73,138.7,26.0]
[1745133598460,0.063,138.73,138.72,19.54469241]
[1745133598927,0.063,138.79,138.78,19.54469241]
[1745133599138,0.063,138.81,138.78,24.58864687]
[1745133599344,0.063,138.81,138.8,19.54469241]
[1745133600252,0.063,138.81,138.8,24.58792007]
[1745133600844,0.063,138.81,138.76,57.26118104]
[1745133600845,0.063,138.81,138.76,31.04456006]
[1745133601155,19.60769241,138.81,138.73,259.75369633]
[1745133601382,0.063,138.81,138.77,19.54469241]
[1745133601553,0.063,138.79,138.77,19.54469241]
[1745133602558,0.063,138.79,138.76,5.04463938]
[1745133602559,0.063,138.79,138.78,19.54469241]
[1745133603075,0.063,138.79,138.73,285.75369633]
[1745133603279,19.60769241,138.79,138.73,247.14]
[1745133603445,0.063,138.79,138.74,19.54469241]
[1745133603647,21.13979241,138.78,138.73,266.68469241]
[1745133604078,21.13979241,138.78,138.69,23.69687648]
[1745133604265,19.54469241,138.76,138.69,5.04722762]
[1745133604457,19.54469241,138.74,138.67,5.04771932]
[1745133604665,19.54469241,138.73,138.68,19.54469241]
[1745133604857,6.5176,138.75,138.67,5.04771932]
[1745133605069,19.54469241,138.74,138.67,5.04771932]
[1745133605268,19.54469241,138.73,138.68,19.54469241]
[1745133605474,6.5176,138.75,138.69,19.54469241]
[1745133605781,19.54469241,138.74,138.69,19.54469241]
[1745133605950,6.5176,138.75,138.7,19.54469241]
[1745133606157,6.5176,138.75,138.68,4.32644419]
[1745133606358,19.54469241,138.73,138.68,19.54469241]
[1745133606967,19.54469241,138.72,138.66,277.36709917]
[1745133607358,26.06229241,138.7,138.6,16.97137727]
[1745133607579,19.54469241,138.69,138.64,19.54469241]
[1745133608077,19.54469241,138.69,138.6,4.32900432]
[1745133608379,32.5176,138.7,138.63,19.54469241]